fUSD/lending_fUSD_20260208
["ID","MTS","AMOUNT","RATE_DAILY","PERIOD"]
[404771178,1770525073498,260.4103811,0.00035616,30]
[404771179,1770525074134,270.0455652,0.00035616,30]
[404771180,1770525074740,280.03725112,0.00035616,30]
[404771181,1770525075374,290.39862941,0.00035616,30]
[404771182,1770525075990,301.1433787,0.00035616,30]
[404771183,1770525095759,406.09210056,0.00030599,30]
[404771185,1770525136574,151.0,0.00035616,30]
[404771186,1770525137219,156.587,0.00035616,30]
[404771187,1770525137867,162.380719,0.00035616,30]
[404771188,1770525138535,168.3888056,0.00035616,30]
[404771189,1770525139159,174.61919141,0.00035616,30]
[404771190,1770525139755,181.08010149,0.00035616,30]
[404771191,1770525140840,187.78006525,0.00035616,30]
[404771192,1770525141505,194.72792766,0.00035616,30]
[404771193,1770525142137,201.93286099,0.00035616,30]
[404771194,1770525142786,209.40437684,0.00035616,30]
[404771195,1770525143516,217.15233878,0.00035616,30]
[404771196,1770525144144,225.18697532,0.00035616,30]
[404771197,1770525144750,233.51889341,0.00035616,30]
[404771198,1770525145374,242.15909246,0.00035616,30]
[404771199,1770525146058,251.11897888,0.00035616,30]
[404771200,1770525147182,260.4103811,0.00035616,30]
[404771201,1770525147810,270.0455652,0.00035616,30]
[404771202,1770525148426,280.03725112,0.00035616,30]
[404771203,1770525149085,290.39862941,0.00035616,30]
[404771204,1770525149720,301.1433787,0.00035616,30]
[404771205,1770525161501,500.0,0.0003059,30]
[404771207,1770525324670,500.0,0.00029899,30]
[404771208,1770525324930,500.0,0.00035259,30]
[404771209,1770525351067,500.0,0.00029899,30]
[404771210,1770525351308,500.0,0.00035259,30]
[404771214,1770525427473,151.0,0.00035616,30]
[404771215,1770525428161,156.587,0.00035616,30]
[404771216,1770525428895,162.380719,0.00035616,30]
[404771217,1770525429712,168.3888056,0.00035616,30]
[404771218,1770525430330,174.61919141,0.00035616,30]
[404771219,1770525431057,181.08010149,0.00035616,30]
[404771220,1770525431760,187.78006525,0.00035616,30]
[404771221,1770525432542,194.72792766,0.00035616,30]
[404771222,1770525433174,201.93286099,0.00035616,30]
[404771223,1770525434292,209.40437684,0.00035616,30]
[404771224,1770525434923,355.34023975,0.00035616,30]
[404771225,1770525436760,151.0,0.00035616,30]
[404771226,1770525437374,156.587,0.00035616,30]
[404771227,1770525438262,162.380719,0.00035616,30]
[404771228,1770525438611,168.3888056,0.00035616,30]
[404771229,1770525439242,174.61919141,0.00035616,30]
[404771230,1770525439974,181.08010149,0.00035616,30]
[404771231,1770525440800,187.78006525,0.00035616,30]
[404771232,1770525441444,194.72792766,0.00035616,30]
[404771233,1770525442138,201.93286099,0.00035616,30]
[404771234,1770525442764,209.40437684,0.00035616,30]
[404771235,1770525443415,217.15233878,0.00035616,30]
[404771236,1770525444061,225.18697532,0.00035616,30]
[404771237,1770525444682,233.51889341,0.00035616,30]
[404771238,1770525445308,242.15909246,0.00035616,30]
[404771239,1770525445938,251.11897888,0.00035616,30]
[404771240,1770525447028,260.4103811,0.00035616,30]
[404771241,1770525447636,270.0455652,0.00035616,30]
[404771242,1770525448261,280.03725112,0.00035616,30]
[404771243,1770525448907,290.39862941,0.00035616,30]
[404771244,1770525449533,301.1433787,0.00035616,30]
[404771245,1770525484858,200.0,0.00035616,30]
[404771246,1770525485590,500.0,0.00029899,30]
[404771247,1770525485812,500.0,0.00035259,30]
[404771248,1770525509738,200.0,0.00035616,30]
[404771251,1770525661854,500.0,0.00030399,30]
[404771252,1770525732223,151.0,0.00035616,30]
[404771253,1770525732847,156.587,0.00035616,30]
[404771254,1770525733466,162.380719,0.00035616,30]
[404771255,1770525734120,168.3888056,0.00035616,30]
[404771256,1770525734781,174.61919141,0.00035616,30]
[404771257,1770525735491,181.08010149,0.00035616,30]
[404771258,1770525735848,500.0,0.00029899,30]
[404771259,1770525735945,500.0,0.00035259,30]
[404771260,1770525736107,187.78006525,0.00035616,30]
[404771261,1770525736762,194.72792766,0.00035616,30]
[404771262,1770525737414,201.93286099,0.00035616,30]
[404771263,1770525738037,209.40437684,0.00035616,30]
[404771264,1770525738667,217.15233878,0.00035616,30]
[404771265,1770525739335,225.18697532,0.00035616,30]
[404771266,1770525740019,233.51889341,0.00035616,30]
[404771267,1770525740698,242.15909246,0.00035616,30]
[404771268,1770525741426,251.11897888,0.00035616,30]
[404771269,1770525742090,260.4103811,0.00035616,30]
[404771270,1770525742757,270.0455652,0.00035616,30]
[404771271,1770525743406,280.03725112,0.00035616,30]
[404771272,1770525744027,290.39862941,0.00035616,30]
[404771273,1770525744694,301.1433787,0.00035616,30]
[404771275,1770526029774,250.0,0.00035616,30]
[404771276,1770526030389,250.0,0.00035616,30]
[404771277,1770526031008,250.0,0.00035616,30]
[404771278,1770526031622,250.0,0.00035616,30]
[404771279,1770526032321,250.0,0.00035616,30]
[404771280,1770526032974,250.0,0.00035616,30]
[404771281,1770526033640,250.0,0.00035616,30]
[404771282,1770526034312,250.0,0.00035616,30]
[404771283,1770526040504,151.0,0.00035616,30]
[404771284,1770526041160,156.587,0.00035616,30]
[404771285,1770526041808,162.380719,0.00035616,30]
[404771286,1770526042450,168.3888056,0.00035616,30]
[404771287,1770526043077,174.61919141,0.00035616,30]
[404771288,1770526043706,181.08010149,0.00035616,30]
[404771289,1770526044333,187.78006525,0.00035616,30]
[404771290,1770526044967,194.72792766,0.00035616,30]
[404771291,1770526045631,201.93286099,0.00035616,30]
[404771292,1770526046241,209.40437684,0.00035616,30]
[404771293,1770526046870,217.15233878,0.00035616,30]
[404771294,1770526047488,225.18697532,0.00035616,30]
[404771295,1770526048083,233.51889341,0.00035616,30]
[404771296,1770526048796,242.15909246,0.00035616,30]
[404771297,1770526049460,251.11897888,0.00035616,30]
[404771298,1770526050080,260.4103811,0.00035616,30]
[404771299,1770526050687,270.0455652,0.00035616,30]
[404771300,1770526051312,280.03725112,0.00035616,30]
[404771301,1770526051908,290.39862941,0.00035616,30]
[404771302,1770526052515,301.1433787,0.00035616,30]
[404771310,1770526231675,-180.87617865,0.00013393,2]
[404771311,1770526231687,-598.76372082,0.00013393,2]
[404771312,1770526231697,-214.3089406,0.00013393,2]
[404771313,1770526231707,-150.0,0.00013441,2]
[404771314,1770526231717,-150.0,0.00013441,2]
[404771315,1770526231727,-483.0,0.00013467,2]
[404771316,1770526231737,-68205.24798581,0.00013468,2]
[404771319,1770526237716,-166.26252615,0.00013393,2]
[404771320,1770526237726,-463.24255094,0.00013467,2]
[404771321,1770526237736,-400.94625994,0.00013467,2]
[404771322,1770526237745,-194.82668622,0.00013467,2]
[404771323,1770526237754,-98.55997583,0.00013467,2]
[404771324,1770526237766,-401.44002417,0.00013467,2]
[404771325,1770526237775,-500.0,0.00013467,2]
[404771326,1770526237785,-130.0701353,0.00013467,2]
[404771327,1770526237796,-369.9298647,0.00013467,2]
[404771328,1770526237806,-536.6940986,0.00013467,2]
[404771330,1770526239684,-28.38168381,0.00013467,2]
[404771331,1770526239693,-500.0,0.00013467,2]
[404771332,1770526239703,-562.6183162,0.00013468,2]
[404771333,1770526239792,-2523.15841515,0.00013468,2]
[404771334,1770526239803,-1059.80161734,0.00013468,2]
[404771413,1770526243332,-2255.445,0.00013468,2]
[404771414,1770526243344,-1005.17,0.00013468,2]
[404771415,1770526244128,-1000.0029843,0.00013468,2]
[404771416,1770526244186,-3100.0,0.00013468,2]
[404771421,1770526245567,-5532.0,0.00013468,2]
[404771422,1770526246221,647.34,0.00033499,30]
[404771423,1770526270306,596.82,0.00033499,30]
[404771425,1770526302300,200.0,0.00035616,30]
[404771426,1770526316160,300.0,0.00035616,30]
[404771427,1770526330624,500.0,0.00030399,30]
[404771428,1770526331107,151.0,0.00035616,30]
[404771429,1770526331725,156.587,0.00035616,30]
[404771430,1770526332404,162.380719,0.00035616,30]
[404771431,1770526333055,168.3888056,0.00035616,30]
[404771432,1770526336068,200.0,0.00035616,30]
[404771433,1770526339966,174.61919141,0.00035616,30]
[404771434,1770526341171,181.08010149,0.00035616,30]
[404771435,1770526342013,187.78006525,0.00035616,30]
[404771436,1770526342584,194.72792766,0.00035616,30]
[404771437,1770526343265,201.93286099,0.00035616,30]
[404771438,1770526343922,209.40437684,0.00035616,30]
[404771439,1770526344548,217.15233878,0.00035616,30]
[404771440,1770526345187,225.18697532,0.00035616,30]
[404771441,1770526345852,233.51889341,0.00035616,30]
[404771442,1770526346478,242.15909246,0.00035616,30]
[404771443,1770526347120,251.11897888,0.00035616,30]
[404771444,1770526347776,260.4103811,0.00035616,30]
[404771445,1770526348437,270.0455652,0.00035616,30]
[404771446,1770526349100,280.03725112,0.00035616,30]
[404771447,1770526350207,290.39862941,0.00035616,30]
[404771448,1770526350898,301.1433787,0.00035616,30]
[404771449,1770526395200,500.0,0.00033499,30]
[404771450,1770526420425,322.87,0.00027397,30]
[404771451,1770526420636,322.87,0.00032232,30]
[404771454,1770526630491,151.0,0.00035616,30]
[404771455,1770526631099,156.587,0.00035616,30]
[404771456,1770526631703,162.380719,0.00035616,30]
[404771457,1770526632316,168.3888056,0.00035616,30]
[404771458,1770526632951,174.61919141,0.00035616,30]
[404771459,1770526633588,181.08010149,0.00035616,30]
[404771460,1770526634213,187.78006525,0.00035616,30]
[404771461,1770526634941,194.72792766,0.00035616,30]
[404771462,1770526635606,201.93286099,0.00035616,30]
[404771463,1770526636301,209.40437684,0.00035616,30]
[404771464,1770526637035,217.15233878,0.00035616,30]
[404771465,1770526637574,225.18697532,0.00035616,30]
[404771466,1770526637890,-3253.31,0.00011233,2]
[404771467,1770526637912,-1920.737,0.00013199,2]
[404771468,1770526637933,-176.869,0.00013199,2]
[404771469,1770526637953,-1653.084,0.00013268,2]
[404771470,1770526638252,233.51889341,0.00035616,30]
[404771471,1770526638903,242.15909246,0.00035616,30]
[404771472,1770526639537,251.11897888,0.00035616,30]
[404771473,1770526640156,260.4103811,0.00035616,30]
[404771474,1770526640924,270.0455652,0.00035616,30]
[404771475,1770526641574,280.03725112,0.00035616,30]
[404771476,1770526642230,290.39862941,0.00035616,30]
[404771477,1770526642879,301.1433787,0.00035616,30]
[404771482,1770527200711,200.0,0.00035616,30]
[404771483,1770527236303,151.0,0.00035616,30]
[404771484,1770527236925,156.587,0.00035616,30]
[404771485,1770527237547,162.380719,0.00035616,30]
[404771486,1770527238215,168.3888056,0.00035616,30]
[404771487,1770527238843,174.61919141,0.00035616,30]
[404771488,1770527239486,181.08010149,0.00035616,30]
[404771489,1770527240149,187.78006525,0.00035616,30]
[404771490,1770527240782,194.72792766,0.00035616,30]
[404771491,1770527241475,201.93286099,0.00035616,30]
[404771492,1770527242113,209.40437684,0.00035616,30]
[404771493,1770527242738,217.15233878,0.00035616,30]
[404771494,1770527243367,225.18697532,0.00035616,30]
[404771495,1770527243995,233.51889341,0.00035616,30]
[404771496,1770527244637,315.76465403,0.00035616,30]
[404771497,1770527268715,500.0,0.00035616,30]
[404771498,1770527276077,969.65,0.00035616,30]
[404771499,1770527279654,2089.0,0.00035616,30]
[404771500,1770527289420,2000.0,0.00035616,30]
[404771501,1770527290305,2000.0,0.00035616,30]
[404771502,1770527291259,500.0,0.00035616,30]
[404771503,1770527310055,500.0,0.00030499,30]
[404771504,1770527310288,500.0,0.00035259,30]
[404771505,1770527310525,165.08560932,0.00035259,30]
[404771506,1770527347845,1002.0,0.00035616,30]
[404771514,1770527424803,351.4,0.00035616,30]
[404771517,1770527431890,-166.66,0.00012459,2]
[404771518,1770527431900,-166.66,0.00012722,2]
[404771519,1770527431909,-166.66,0.00012984,2]
[404771520,1770527431919,-121.20661666,0.00013003,2]
[404771521,1770527431930,-55.66238334,0.00013003,2]
[404771522,1770527431939,-692.34728221,0.00013003,2]
[404771523,1770527431955,-705.89360131,0.00013003,2]
[404771524,1770527431970,-897.26211648,0.00013003,2]
[404771525,1770527431979,-8135.29497688,0.00013068,2]
[404771526,1770527431990,-463.52990528,0.00013068,2]
[404771532,1770527438069,-8530.76074943,0.00013068,2]
[404771533,1770527438080,-2378.18797602,0.00013068,2]
[404771534,1770527438090,-493.88358875,0.00013068,2]
[404771535,1770527438099,-399.17581388,0.00013068,2]
[404771536,1770527438110,-19840.54445301,0.00013092,2]
[404771537,1770527438119,-201.5202978,0.00013141,2]
[404771538,1770527438129,-9576.0,0.00013151,2]
[404771539,1770527438138,-280.66238196,0.00013167,2]
[404771541,1770527438149,-500.0,0.00013167,2]
[404771542,1770527438158,-324.26978566,0.00013167,2]
[404771543,1770527438168,-295.55304769,0.00013167,2]
[404771544,1770527438179,-500.0,0.00013167,2]
[404771545,1770527438188,-500.0,0.00013167,2]
[404771546,1770527438198,-500.0,0.00013168,2]
[404771547,1770527438207,-2500.0,0.00013168,2]
[404771548,1770527438216,-2002955.86982209,0.00013168,2]
[404771549,1770527438233,-1023.66848847,0.00013168,2]
[404771550,1770527438244,-69564.99999999,0.00013168,2]
[404771551,1770527438255,-1399.84193708,0.00013168,2]
[404771552,1770527438276,-636.88586202,0.00013168,2]
[404771553,1770527438292,-6548.09848506,0.00013168,2]
[404771882,1770527444345,-615.192,0.00013168,2]
[404771890,1770527445778,-18723.42802331,0.00013168,2]
[404771915,1770527938306,160.0,0.00013,3]
[404771917,1770528106969,500.0,0.0003461,30]
[404771920,1770528506685,176902.7625484,0.00029,120]
[404771921,1770528526390,10000.0,0.00035616,30]
[404771927,1770528603150,10942.08759209,0.00035616,120]
[404771928,1770528604155,192.0,0.00029049,120]
[404771938,1770528631907,-1000.0,0.00012266,2]
[404771940,1770528631917,-300.0,0.00012338,2]
[404771941,1770528631927,-443.63,0.0001241,2]
[404771943,1770528631937,-383.06302283,0.00012452,2]
[404771946,1770528631946,-1200.0,0.00012458,2]
[404771949,1770528631956,-300.0,0.00012458,2]
[404771952,1770528631965,-14262.39411727,0.00012459,2]
[404771955,1770528631977,-12979.42691393,0.00012459,2]
[404771957,1770528631987,-265.84703492,0.00012459,2]
[404771962,1770528632006,-5354.46675912,0.00012459,2]
[404771965,1770528632018,-820.54991355,0.00012459,2]
[404771969,1770528632029,-1606.72727158,0.00012459,2]
[404771971,1770528632040,-3623.32297995,0.00012459,2]
[404771973,1770528632052,-1998.50742485,0.00012459,2]
[404771975,1770528632063,-4158.62726896,0.00012459,2]
[404771978,1770528632078,-927.69623708,0.00012459,2]
[404771980,1770528632089,-13972.85755045,0.00012459,2]
[404771982,1770528632101,-22382.0553048,0.00012459,2]
[404771984,1770528632112,-327.98122354,0.00012459,2]
[404771985,1770528632122,-399.39697064,0.00012668,2]
[404771986,1770528632132,-474.202935,0.00012668,2]
[404771987,1770528632144,-612.89013257,0.00012668,2]
[404771993,1770528638155,487.21099027,0.00035,30]
[404771994,1770528638172,-4855.55226179,0.00012668,2]
[404771995,1770528638182,-500.0,0.00012767,2]
[404771996,1770528638191,-500.0,0.00012805,2]
[404771997,1770528638201,-640.75221182,0.00012831,2]
[404771998,1770528638210,-201.5202978,0.00012841,2]
[404771999,1770528638220,-2500.0,0.00012841,2]
[404772000,1770528638230,-9576.0,0.00012849,2]
[404772001,1770528638239,-280.66238196,0.00012867,2]
[404772002,1770528638249,-324.26978566,0.00012867,2]
[404772003,1770528638258,-500.0,0.00012867,2]
[404772004,1770528638267,-500.0,0.00012867,2]
[404772005,1770528638277,-500.0,0.00012867,2]
[404772006,1770528638286,-295.55304769,0.00012867,2]
[404772007,1770528638295,-176.87,0.0001294,2]
[404772008,1770528638305,-1836.402,0.0001294,2]
[404772009,1770528638315,-358.39522769,0.00012968,2]
[404772010,1770528638329,-1991.9557,0.00012968,2]
[404772011,1770528638339,-173.54923034,0.00012968,2]
[404772012,1770528638348,-161.9296655,0.00012968,2]
[404772013,1770528638358,-201.0,0.00012986,2]
[404772014,1770528638367,-1000.0,0.00013068,2]
[404772015,1770528638377,-610.2912403,0.00013166,2]
[404772016,1770528638387,-9623.844727,0.00013166,2]
[404772017,1770528638396,-500.0,0.00013192,2]
[404772018,1770528638406,-166.66,0.00013246,2]
[404772019,1770528638416,-301.059,0.00013367,2]
[404772020,1770528638425,-300.0,0.00013492,2]
[404772021,1770528638435,-500.0,0.00013492,2]
[404772022,1770528638444,-166.66,0.00013508,2]
[404772024,1770528638454,-1573.97,0.00013528,2]
[404772025,1770528638463,-16269.70314341,0.00013598,2]
[404772026,1770528638473,-292.94,0.00013631,2]
[404772027,1770528638482,-277.35679052,0.00013651,2]
[404772028,1770528638491,-500.0,0.00013651,2]
[404772029,1770528638501,-590.82546977,0.00013651,2]
[404772030,1770528638510,-519.29278148,0.00013698,2]
[404772031,1770528638519,-500.0,0.00013698,2]
[404772033,1770528638529,-500.0,0.00013698,2]
[404772034,1770528638538,-500.0,0.00013698,2]
[404772035,1770528638547,-500.0,0.00013698,2]
[404772036,1770528638556,-500.0,0.00013698,2]
[404772037,1770528638566,-500.0,0.00013698,2]
[404772038,1770528638576,-500.0,0.00013698,2]
[404772039,1770528638585,-500.0,0.00013698,2]
[404772040,1770528638595,-500.0,0.00013698,2]
[404772041,1770528638604,-500.0,0.00013698,2]
[404772042,1770528638614,-500.0,0.00013698,2]
[404772043,1770528638623,-500.0,0.00013698,2]
[404772044,1770528638632,-500.0,0.00013698,2]
[404772045,1770528638641,-500.0,0.00013698,2]
[404772046,1770528638651,-500.0,0.00013698,2]
[404772047,1770528638660,-500.0,0.00013698,2]
[404772048,1770528638669,-500.0,0.00013698,2]
[404772049,1770528638678,-500.0,0.00013698,2]
[404772050,1770528638687,-500.0,0.00013698,2]
[404772051,1770528638696,-500.0,0.00013698,2]
[404772052,1770528638706,-500.0,0.00013698,2]
[404772053,1770528638715,-500.0,0.00013698,2]
[404772054,1770528638725,-500.0,0.00013698,2]
[404772055,1770528638738,-500.0,0.00013698,2]
[404772056,1770528638748,-500.0,0.00013698,2]
[404772057,1770528638757,-500.0,0.00013698,2]
[404772058,1770528638767,-500.0,0.00013698,2]
[404772059,1770528638776,-500.0,0.00013698,2]
[404772060,1770528638785,-500.0,0.00013698,2]
[404772061,1770528638795,-500.0,0.00013698,2]
[404772062,1770528638804,-500.0,0.00013698,2]
[404772063,1770528638814,-500.0,0.00013698,2]
[404772064,1770528638823,-500.0,0.00013698,2]
[404772065,1770528638832,-500.0,0.00013698,2]
[404772066,1770528638841,-500.0,0.00013698,2]
[404772067,1770528638850,-500.0,0.00013698,2]
[404772068,1770528638859,-500.0,0.00013698,2]
[404772069,1770528638869,-500.0,0.00013698,2]
[404772070,1770528638878,-500.0,0.00013698,2]
[404772071,1770528638888,-551.73308967,0.00013698,2]
[404772072,1770528638897,-500.0,0.00013698,2]
[404772073,1770528638907,-500.0,0.00013698,2]
[404772074,1770528638916,-500.0,0.00013698,2]
[404772075,1770528638925,-500.0,0.00013698,2]
[404772076,1770528638934,-500.0,0.00013698,2]
[404772077,1770528638944,-500.0,0.00013698,2]
[404772078,1770528638953,-500.0,0.00013698,2]
[404772079,1770528638963,-500.0,0.00013698,2]
[404772080,1770528638972,-500.0,0.00013698,2]
[404772081,1770528638981,-500.0,0.00013698,2]
[404772082,1770528638991,-500.0,0.00013698,2]
[404772083,1770528639000,-500.0,0.00013698,2]
[404772084,1770528639009,-500.0,0.00013698,2]
[404772085,1770528639018,-500.0,0.00013698,2]
[404772086,1770528639027,-500.0,0.00013698,2]
[404772087,1770528639037,-500.0,0.00013698,2]
[404772088,1770528639045,-500.0,0.00013698,2]
[404772089,1770528639054,-500.0,0.00013698,2]
[404772090,1770528639063,-500.0,0.00013698,2]
[404772091,1770528639073,-500.0,0.00013698,2]
[404772092,1770528639082,-500.0,0.00013698,2]
[404772093,1770528639092,-500.0,0.00013698,2]
[404772094,1770528639101,-500.0,0.00013698,2]
[404772095,1770528639110,-500.0,0.00013698,2]
[404772096,1770528639119,-500.0,0.00013698,2]
[404772097,1770528639128,-418.53449806,0.00013698,2]
[404772098,1770528639138,-554.61994383,0.00013698,2]
[404772099,1770528639147,-500.0,0.00013698,2]
[404772100,1770528639156,-500.0,0.00013698,2]
[404772101,1770528639165,-500.0,0.00013698,2]
[404772102,1770528639175,-500.0,0.00013698,2]
[404772103,1770528639184,-500.0,0.00013698,2]
[404772104,1770528639193,-500.0,0.00013698,2]
[404772105,1770528639203,-500.0,0.00013698,2]
[404772106,1770528639212,-500.0,0.00013698,2]
[404772107,1770528639220,-500.0,0.00013698,2]
[404772108,1770528639229,-500.0,0.00013698,2]
[404772109,1770528639239,-500.0,0.00013698,2]
[404772110,1770528639248,-500.0,0.00013698,2]
[404772111,1770528639258,-500.0,0.00013698,2]
[404772112,1770528639266,-500.0,0.00013698,2]
[404772113,1770528639275,-463.13258708,0.00013698,2]
[404772114,1770528639285,-500.0,0.00013698,2]
[404772115,1770528639294,-200.0,0.00013699,2]
[404772116,1770528639303,-436.11,0.00013699,2]
[404772117,1770528639312,-166.66,0.00013771,2]
[404772118,1770528639323,-1000.0,0.00013799,2]
[404772119,1770528639332,-200.0,0.00013963,2]
[404772120,1770528639341,-500.0,0.00013972,2]
[404772121,1770528639350,-166.66,0.00014014,2]
[404772122,1770528639360,-287.61899177,0.00014199,2]
[404772123,1770528639370,-6715.4940684,0.00014262,2]
[404772124,1770528639379,-13848.0,0.00014292,2]
[404772125,1770528639389,-436.11,0.00014384,2]
[404772126,1770528639399,-166.66,0.00014476,2]
[404772127,1770528639411,-610.2912403,0.00014562,2]
[404772128,1770528639421,-9623.844727,0.00014562,2]
[404772129,1770528639431,-155.0,0.00014704,2]
[404772130,1770528639440,-298.26089446,0.00014747,2]
[404772131,1770528639451,-16040.76510249,0.00014761,2]
[404772132,1770528639461,-166.66,0.00014939,2]
[404772133,1770528639471,-186.73,0.00015068,2]
[404772134,1770528639481,-436.11,0.00015068,2]
[404772135,1770528639490,-153.47,0.00015069,2]
[404772136,1770528639502,-150.0,0.00015283,2]
[404772137,1770528639512,-309.29654756,0.00015295,2]
[404772138,1770528639521,-1000.0,0.00015332,2]
[404772139,1770528639534,-292.94,0.00015335,2]
[404772140,1770528639543,-166.66,0.00015402,2]
[404772141,1770528639552,-500.0,0.00015534,2]
[404772142,1770528639563,-436.11,0.00015753,2]
[404772143,1770528639574,-152.388371,0.00015759,2]
[404772144,1770528639584,-2000.0,0.000158,2]
[404772145,1770528639594,-2000.0,0.000158,2]
[404772146,1770528639603,-3449.0,0.000158,2]
[404772147,1770528639613,-1883.07240951,0.00015817,2]
[404772148,1770528639623,-320.74051982,0.00015843,2]
[404772149,1770528639633,-166.66,0.00015864,2]
[404772150,1770528639643,-610.2912403,0.00015959,2]
[404772151,1770528639652,-9623.844727,0.00015959,2]
[404772152,1770528639663,-1666.66667,0.0001598,2]
[404772153,1770528639673,-1666.66666,0.0001598,2]
[404772154,1770528639683,-1666.66667,0.0001598,2]
[404772155,1770528639692,-155.0,0.0001604,2]
[404772156,1770528639703,-500.0,0.00016078,2]
[404772157,1770528639713,-500.0,0.00016078,2]
[404772158,1770528639723,-500.0,0.00016078,2]
[404772159,1770528639733,-1498.4292669,0.00016079,2]
[404772160,1770528639743,-16054.28747992,0.00016093,2]
[404772161,1770528639753,-1666.66667,0.0001614,2]
[404772162,1770528639762,-1666.66667,0.0001614,2]
[404772163,1770528639772,-5000.00248925,0.000162,5]
[404772164,1770528639781,-166.66,0.00016327,2]
[404772165,1770528639791,-332.60791905,0.00016391,2]
[404772166,1770528639801,-186.73,0.00016438,2]
[404772168,1770528639811,-436.11,0.00016438,2]
[404772169,1770528639820,-550.43151161,0.00016484,2]
[404772170,1770528639830,-334.3447623,0.00016485,2]
[404772171,1770528639840,-151.0,0.00016485,2]
[404772172,1770528639849,-151.0,0.00016485,2]
[404772173,1770528639858,-151.0,0.00016485,2]
[404772174,1770528639868,-151.0,0.00016485,2]
[404772175,1770528639877,-151.0,0.00016485,2]
[404772176,1770528639886,-151.0,0.00016485,2]
[404772177,1770528639895,-151.0,0.00016485,2]
[404772178,1770528639904,-361.08619617,0.000166,2]
[404772179,1770528639913,-714.55721858,0.00016734,2]
[404772180,1770528639923,-1000.0,0.00016865,2]
[404772181,1770528639932,-952.0,0.0001688,2]
[404772182,1770528639941,-151.0,0.00016919,2]
[404772183,1770528639950,-22808.65826002,0.00016919,2]
[404772184,1770528639960,-344.91441206,0.00016939,2]
[404772185,1770528639969,-16269.70314332,0.00016983,2]
[404772186,1770528639979,-129284.03316858,0.00017,2]
[404772187,1770528639987,-151.0,0.00017,2]
[404772188,1770528639996,-151.0,0.00017,2]
[404772189,1770528640005,-151.0,0.00017,2]
[404772190,1770528640014,-151.0,0.00017,2]
[404772191,1770528640023,-151.0,0.00017,2]
[404772192,1770528640032,-151.0,0.00017,2]
[404772193,1770528640042,-151.0,0.00017,2]
[404772194,1770528640051,-151.0,0.00017,2]
[404772195,1770528640060,-292.94,0.00017039,2]
[404772196,1770528640069,-952.0,0.00017086,2]
[404772197,1770528640079,-755.0,0.00017215,2]
[404772198,1770528640088,-952.0,0.00017272,2]
[404772199,1770528640097,-500.0,0.00017288,2]
[404772200,1770528640106,-640.75221179,0.00017292,2]
[404772201,1770528640115,-755.0,0.00017314,2]
[404772202,1770528640125,-755.0,0.00017318,2]
[404772203,1770528640134,-755.0,0.00017334,2]
[404772204,1770528640143,-610.2912403,0.00017355,2]
[404772205,1770528640152,-9623.844727,0.00017355,2]
[404772206,1770528640162,-443.63,0.00017375,2]
[404772207,1770528640172,-500.0,0.00017409,2]
[404772208,1770528640182,-500.0,0.00017409,2]
[404772209,1770528640191,-500.0,0.00017409,2]
[404772210,1770528640200,-755.0,0.00017416,2]
[404772211,1770528640209,-755.0,0.00017477,2]